{"text_format":"3","workbook":"xlsx","n_sheets":1,"sheets":["Bestandsliste"],"not_rendered":{"defined_names":2},"read":"whole","date_system":"1900"}

{"sheet":"Bestandsliste","index":0,"n_rows":27,"n_cols":11,"rows_kept":27,"merged":[[0,0,0,8]]}
["BESTANDSLISTE SPIRITUOSEN",{"$nulls":8},true]
["MRK","BESTANDS-ID","NAME","BESCHREIBUNG","STÜCKPREIS","LAGERBESTAND","BESTANDSWERT","NACHBESTELLSTAND","NACHBESTELLZEIT IN TAGEN","NACHBESTELLMENGE","AUSLAUFARTIKEL?"]
[{"$f":"(TblBestandsliste[[#This Row],[LAGERBESTAND]]<=TblBestandsliste[[#This Row],[NACHBESTELLSTAND]])*(TblBestandsliste[[#This Row],[AUSLAUFARTIKEL?]]=\"\")*HervorhebenWert","v":1},"IN0001","Artikel 1","Beschreibung 1",{"v":51,"d":"51 €"},25,{"$f":"TblBestandsliste[[#This Row],[STÜCKPREIS]]*TblBestandsliste[[#This Row],[LAGERBESTAND]]","v":{"v":1275,"d":"1,275 €"}},29,13,50]
[{"$f":"(TblBestandsliste[[#This Row],[LAGERBESTAND]]<=TblBestandsliste[[#This Row],[NACHBESTELLSTAND]])*(TblBestandsliste[[#This Row],[AUSLAUFARTIKEL?]]=\"\")*HervorhebenWert","v":1},"IN0002","Artikel 2","Beschreibung 2",{"v":93,"d":"93 €"},132,{"$f":"TblBestandsliste[[#This Row],[STÜCKPREIS]]*TblBestandsliste[[#This Row],[LAGERBESTAND]]","v":{"v":12276,"d":"12,276 €"}},231,4,50]
[{"$f":"(TblBestandsliste[[#This Row],[LAGERBESTAND]]<=TblBestandsliste[[#This Row],[NACHBESTELLSTAND]])*(TblBestandsliste[[#This Row],[AUSLAUFARTIKEL?]]=\"\")*HervorhebenWert","v":0},"IN0003","Artikel 3","Beschreibung 3",{"v":57,"d":"57 €"},151,{"$f":"TblBestandsliste[[#This Row],[STÜCKPREIS]]*TblBestandsliste[[#This Row],[LAGERBESTAND]]","v":{"v":8607,"d":"8,607 €"}},114,11,150]
[{"$f":"(TblBestandsliste[[#This Row],[LAGERBESTAND]]<=TblBestandsliste[[#This Row],[NACHBESTELLSTAND]])*(TblBestandsliste[[#This Row],[AUSLAUFARTIKEL?]]=\"\")*HervorhebenWert","v":0},"IN0004","Artikel 4","Beschreibung 4",{"v":19,"d":"19 €"},186,{"$f":"TblBestandsliste[[#This Row],[STÜCKPREIS]]*TblBestandsliste[[#This Row],[LAGERBESTAND]]","v":{"v":3534,"d":"3,534 €"}},158,6,50]
[{"$f":"(TblBestandsliste[[#This Row],[LAGERBESTAND]]<=TblBestandsliste[[#This Row],[NACHBESTELLSTAND]])*(TblBestandsliste[[#This Row],[AUSLAUFARTIKEL?]]=\"\")*HervorhebenWert","v":0},"IN0005","Artikel 5","Beschreibung 5",{"v":75,"d":"75 €"},62,{"$f":"TblBestandsliste[[#This Row],[STÜCKPREIS]]*TblBestandsliste[[#This Row],[LAGERBESTAND]]","v":{"v":4650,"d":"4,650 €"}},39,12,50]
[{"$f":"(TblBestandsliste[[#This Row],[LAGERBESTAND]]<=TblBestandsliste[[#This Row],[NACHBESTELLSTAND]])*(TblBestandsliste[[#This Row],[AUSLAUFARTIKEL?]]=\"\")*HervorhebenWert","v":1},"IN0006","Artikel 6","Beschreibung 6",{"v":11,"d":"11 €"},5,{"$f":"TblBestandsliste[[#This Row],[STÜCKPREIS]]*TblBestandsliste[[#This Row],[LAGERBESTAND]]","v":{"v":55,"d":"55 €"}},9,13,150]
[{"$f":"(TblBestandsliste[[#This Row],[LAGERBESTAND]]<=TblBestandsliste[[#This Row],[NACHBESTELLSTAND]])*(TblBestandsliste[[#This Row],[AUSLAUFARTIKEL?]]=\"\")*HervorhebenWert","v":1},"IN0007","Artikel 7","Beschreibung 7",{"v":56,"d":"56 €"},58,{"$f":"TblBestandsliste[[#This Row],[STÜCKPREIS]]*TblBestandsliste[[#This Row],[LAGERBESTAND]]","v":{"v":3248,"d":"3,248 €"}},109,7,100]
[{"$f":"(TblBestandsliste[[#This Row],[LAGERBESTAND]]<=TblBestandsliste[[#This Row],[NACHBESTELLSTAND]])*(TblBestandsliste[[#This Row],[AUSLAUFARTIKEL?]]=\"\")*HervorhebenWert","v":1},"IN0008","Artikel 8","Beschreibung 8",{"v":38,"d":"38 €"},101,{"$f":"TblBestandsliste[[#This Row],[STÜCKPREIS]]*TblBestandsliste[[#This Row],[LAGERBESTAND]]","v":{"v":3838,"d":"3,838 €"}},162,3,100]
[{"$f":"(TblBestandsliste[[#This Row],[LAGERBESTAND]]<=TblBestandsliste[[#This Row],[NACHBESTELLSTAND]])*(TblBestandsliste[[#This Row],[AUSLAUFARTIKEL?]]=\"\")*HervorhebenWert","v":0},"IN0009","Artikel 9","Beschreibung 9",{"v":59,"d":"59 €"},122,{"$f":"TblBestandsliste[[#This Row],[STÜCKPREIS]]*TblBestandsliste[[#This Row],[LAGERBESTAND]]","v":{"v":7198,"d":"7,198 €"}},82,3,150]
[{"$f":"(TblBestandsliste[[#This Row],[LAGERBESTAND]]<=TblBestandsliste[[#This Row],[NACHBESTELLSTAND]])*(TblBestandsliste[[#This Row],[AUSLAUFARTIKEL?]]=\"\")*HervorhebenWert","v":1},"IN0010","Artikel 10","Beschreibung 10",{"v":50,"d":"50 €"},175,{"$f":"TblBestandsliste[[#This Row],[STÜCKPREIS]]*TblBestandsliste[[#This Row],[LAGERBESTAND]]","v":{"v":8750,"d":"8,750 €"}},283,8,150]
[{"$f":"(TblBestandsliste[[#This Row],[LAGERBESTAND]]<=TblBestandsliste[[#This Row],[NACHBESTELLSTAND]])*(TblBestandsliste[[#This Row],[AUSLAUFARTIKEL?]]=\"\")*HervorhebenWert","v":1},"IN0011","Artikel 11","Beschreibung 11",{"v":59,"d":"59 €"},176,{"$f":"TblBestandsliste[[#This Row],[STÜCKPREIS]]*TblBestandsliste[[#This Row],[LAGERBESTAND]]","v":{"v":10384,"d":"10,384 €"}},229,1,100]
[{"$f":"(TblBestandsliste[[#This Row],[LAGERBESTAND]]<=TblBestandsliste[[#This Row],[NACHBESTELLSTAND]])*(TblBestandsliste[[#This Row],[AUSLAUFARTIKEL?]]=\"\")*HervorhebenWert","v":1},"IN0012","Artikel 12","Beschreibung 12",{"v":18,"d":"18 €"},22,{"$f":"TblBestandsliste[[#This Row],[STÜCKPREIS]]*TblBestandsliste[[#This Row],[LAGERBESTAND]]","v":{"v":396,"d":"396 €"}},36,12,50]
[{"$f":"(TblBestandsliste[[#This Row],[LAGERBESTAND]]<=TblBestandsliste[[#This Row],[NACHBESTELLSTAND]])*(TblBestandsliste[[#This Row],[AUSLAUFARTIKEL?]]=\"\")*HervorhebenWert","v":1},"IN0013","Artikel 13","Beschreibung 13",{"v":26,"d":"26 €"},72,{"$f":"TblBestandsliste[[#This Row],[STÜCKPREIS]]*TblBestandsliste[[#This Row],[LAGERBESTAND]]","v":{"v":1872,"d":"1,872 €"}},102,9,100]
[{"$f":"(TblBestandsliste[[#This Row],[LAGERBESTAND]]<=TblBestandsliste[[#This Row],[NACHBESTELLSTAND]])*(TblBestandsliste[[#This Row],[AUSLAUFARTIKEL?]]=\"\")*HervorhebenWert","v":1},"IN0014","Artikel 14","Beschreibung 14",{"v":42,"d":"42 €"},62,{"$f":"TblBestandsliste[[#This Row],[STÜCKPREIS]]*TblBestandsliste[[#This Row],[LAGERBESTAND]]","v":{"v":2604,"d":"2,604 €"}},83,2,100]
[{"$f":"(TblBestandsliste[[#This Row],[LAGERBESTAND]]<=TblBestandsliste[[#This Row],[NACHBESTELLSTAND]])*(TblBestandsliste[[#This Row],[AUSLAUFARTIKEL?]]=\"\")*HervorhebenWert","v":0},"IN0015","Artikel 15","Beschreibung 15",{"v":32,"d":"32 €"},46,{"$f":"TblBestandsliste[[#This Row],[STÜCKPREIS]]*TblBestandsliste[[#This Row],[LAGERBESTAND]]","v":{"v":1472,"d":"1,472 €"}},23,15,50]
[{"$f":"(TblBestandsliste[[#This Row],[LAGERBESTAND]]<=TblBestandsliste[[#This Row],[NACHBESTELLSTAND]])*(TblBestandsliste[[#This Row],[AUSLAUFARTIKEL?]]=\"\")*HervorhebenWert","v":1},"IN0016","Artikel 16","Beschreibung 16",{"v":90,"d":"90 €"},96,{"$f":"TblBestandsliste[[#This Row],[STÜCKPREIS]]*TblBestandsliste[[#This Row],[LAGERBESTAND]]","v":{"v":8640,"d":"8,640 €"}},180,3,50]
[{"$f":"(TblBestandsliste[[#This Row],[LAGERBESTAND]]<=TblBestandsliste[[#This Row],[NACHBESTELLSTAND]])*(TblBestandsliste[[#This Row],[AUSLAUFARTIKEL?]]=\"\")*HervorhebenWert","v":0},"IN0017","Artikel 17","Beschreibung 17",{"v":97,"d":"97 €"},57,{"$f":"TblBestandsliste[[#This Row],[STÜCKPREIS]]*TblBestandsliste[[#This Row],[LAGERBESTAND]]","v":{"v":5529,"d":"5,529 €"}},98,12,50,"Ja"]
[{"$f":"(TblBestandsliste[[#This Row],[LAGERBESTAND]]<=TblBestandsliste[[#This Row],[NACHBESTELLSTAND]])*(TblBestandsliste[[#This Row],[AUSLAUFARTIKEL?]]=\"\")*HervorhebenWert","v":1},"IN0018","Artikel 18","Beschreibung 18",{"v":12,"d":"12 €"},6,{"$f":"TblBestandsliste[[#This Row],[STÜCKPREIS]]*TblBestandsliste[[#This Row],[LAGERBESTAND]]","v":{"v":72,"d":"72 €"}},7,13,50]
[{"$f":"(TblBestandsliste[[#This Row],[LAGERBESTAND]]<=TblBestandsliste[[#This Row],[NACHBESTELLSTAND]])*(TblBestandsliste[[#This Row],[AUSLAUFARTIKEL?]]=\"\")*HervorhebenWert","v":1},"IN0019","Artikel 19","Beschreibung 19",{"v":82,"d":"82 €"},143,{"$f":"TblBestandsliste[[#This Row],[STÜCKPREIS]]*TblBestandsliste[[#This Row],[LAGERBESTAND]]","v":{"v":11726,"d":"11,726 €"}},164,12,150]
[{"$f":"(TblBestandsliste[[#This Row],[LAGERBESTAND]]<=TblBestandsliste[[#This Row],[NACHBESTELLSTAND]])*(TblBestandsliste[[#This Row],[AUSLAUFARTIKEL?]]=\"\")*HervorhebenWert","v":0},"IN0020","Artikel 20","Beschreibung 20",{"v":16,"d":"16 €"},124,{"$f":"TblBestandsliste[[#This Row],[STÜCKPREIS]]*TblBestandsliste[[#This Row],[LAGERBESTAND]]","v":{"v":1984,"d":"1,984 €"}},113,14,50]
[{"$f":"(TblBestandsliste[[#This Row],[LAGERBESTAND]]<=TblBestandsliste[[#This Row],[NACHBESTELLSTAND]])*(TblBestandsliste[[#This Row],[AUSLAUFARTIKEL?]]=\"\")*HervorhebenWert","v":0},"IN0021","Artikel 21","Beschreibung 21",{"v":19,"d":"19 €"},112,{"$f":"TblBestandsliste[[#This Row],[STÜCKPREIS]]*TblBestandsliste[[#This Row],[LAGERBESTAND]]","v":{"v":2128,"d":"2,128 €"}},75,11,50]
[{"$f":"(TblBestandsliste[[#This Row],[LAGERBESTAND]]<=TblBestandsliste[[#This Row],[NACHBESTELLSTAND]])*(TblBestandsliste[[#This Row],[AUSLAUFARTIKEL?]]=\"\")*HervorhebenWert","v":0},"IN0022","Artikel 22","Beschreibung 22",{"v":24,"d":"24 €"},182,{"$f":"TblBestandsliste[[#This Row],[STÜCKPREIS]]*TblBestandsliste[[#This Row],[LAGERBESTAND]]","v":{"v":4368,"d":"4,368 €"}},132,15,150]
[{"$f":"(TblBestandsliste[[#This Row],[LAGERBESTAND]]<=TblBestandsliste[[#This Row],[NACHBESTELLSTAND]])*(TblBestandsliste[[#This Row],[AUSLAUFARTIKEL?]]=\"\")*HervorhebenWert","v":0},"IN0023","Artikel 23","Beschreibung 23",{"v":29,"d":"29 €"},106,{"$f":"TblBestandsliste[[#This Row],[STÜCKPREIS]]*TblBestandsliste[[#This Row],[LAGERBESTAND]]","v":{"v":3074,"d":"3,074 €"}},142,1,150,"Ja"]
[{"$f":"(TblBestandsliste[[#This Row],[LAGERBESTAND]]<=TblBestandsliste[[#This Row],[NACHBESTELLSTAND]])*(TblBestandsliste[[#This Row],[AUSLAUFARTIKEL?]]=\"\")*HervorhebenWert","v":0},"IN0024","Artikel 24","Beschreibung 24",{"v":75,"d":"75 €"},173,{"$f":"TblBestandsliste[[#This Row],[STÜCKPREIS]]*TblBestandsliste[[#This Row],[LAGERBESTAND]]","v":{"v":12975,"d":"12,975 €"}},127,9,100]
[{"$f":"(TblBestandsliste[[#This Row],[LAGERBESTAND]]<=TblBestandsliste[[#This Row],[NACHBESTELLSTAND]])*(TblBestandsliste[[#This Row],[AUSLAUFARTIKEL?]]=\"\")*HervorhebenWert","v":0},"IN0025","Artikel 25","Beschreibung 25",{"v":14,"d":"14 €"},28,{"$f":"TblBestandsliste[[#This Row],[STÜCKPREIS]]*TblBestandsliste[[#This Row],[LAGERBESTAND]]","v":{"v":392,"d":"392 €"}},21,8,50]